fUST/lending_fUST_20250715
["ID","MTS","AMOUNT","RATE_DAILY","PERIOD"]
[372116069,1752525051642,-160.0,0.0001763,2]
[372116070,1752525051653,-525.46609069,0.0001763,2]
[372116071,1752525051664,-230.73061749,0.0001763,2]
[372116072,1752525051674,-160.0,0.0001763,2]
[372116073,1752525051683,-12600.81778503,0.0001763,2]
[372116074,1752525051693,-215.47013733,0.0001763,2]
[372116075,1752525051704,-804.95425801,0.00017648,2]
[372116076,1752525051714,-210.405118,0.00017808,2]
[372116077,1752525051724,-210.405118,0.00017808,2]
[372116078,1752525051733,-460.0,0.00017808,2]
[372116079,1752525051744,-460.0,0.00017808,2]
[372116080,1752525051753,-460.0,0.00017808,2]
[372116081,1752525051762,-460.0,0.00017808,2]
[372116082,1752525051772,-632.84,0.00017808,2]
[372116083,1752525051782,-720.21,0.00017808,2]
[372116084,1752525051791,-460.0,0.00017808,2]
[372116085,1752525051800,-460.0,0.00017808,2]
[372116086,1752525051809,-460.0,0.00017808,2]
[372116087,1752525051818,-460.0,0.00017808,2]
[372116088,1752525051828,-460.0,0.00017808,2]
[372116089,1752525051837,-460.0,0.00017808,2]
[372116090,1752525051847,-460.0,0.00017808,2]
[372116091,1752525051856,-460.0,0.00017808,2]
[372116092,1752525051865,-460.0,0.00017808,2]
[372116093,1752525051874,-460.0,0.00017808,2]
[372116094,1752525051883,-688.39,0.00017808,2]
[372116095,1752525051892,-1583.76940355,0.00017831,2]
[372116096,1752525051903,-360.0,0.00017988,2]
[372116097,1752525051912,-602.39,0.00018082,2]
[372116098,1752525051922,-460.0,0.00018082,2]
[372116099,1752525051934,-460.0,0.00018082,2]
[372116100,1752525051945,-632.84,0.00018082,2]
[372116101,1752525051954,-720.21,0.00018082,2]
[372116102,1752525051964,-185.06841317,0.00018082,2]
[372116103,1752525051973,-460.0,0.00018082,2]
[372116104,1752525051983,-460.0,0.00018082,2]
[372116105,1752525051992,-460.0,0.00018082,2]
[372116106,1752525052002,-460.0,0.00018082,2]
[372116107,1752525052012,-580.19,0.00018082,2]
[372116108,1752525052022,-460.0,0.00018082,2]
[372116109,1752525052031,-460.0,0.00018082,2]
[372116110,1752525052042,-605.32,0.00018082,2]
[372116111,1752525052052,-224.86,0.00018082,2]
[372116112,1752525052062,-688.39,0.00018082,2]
[372116113,1752525052071,-1583.76940355,0.00018141,2]
[372116114,1752525052081,-334.0044761,0.00018267,2]
[372116115,1752525052091,-151.0,0.00018356,2]
[372116116,1752525052101,-151.0,0.00018356,2]
[372116117,1752525052110,-151.0,0.00018356,2]
[372116118,1752525052119,-151.0,0.00018356,2]
[372116119,1752525052129,-460.0,0.00018356,2]
[372116120,1752525052138,-239.74,0.00018356,2]
[372116121,1752525052147,-632.84,0.00018356,2]
[372116122,1752525052156,-720.21,0.00018356,2]
[372116123,1752525052166,-460.0,0.00018356,2]
[372116124,1752525052176,-460.0,0.00018356,2]
[372116125,1752525052186,-460.0,0.00018356,2]
[372116126,1752525052195,-460.0,0.00018356,2]
[372116127,1752525052207,-460.0,0.00018356,2]
[372116128,1752525052217,-460.0,0.00018356,2]
[372116129,1752525052227,-688.39,0.00018356,2]
[372116130,1752525052237,-1583.76940355,0.00018452,2]
[372116131,1752525052247,-460.0,0.00018536,2]
[372116132,1752525052256,-215.0738,0.0001862,2]
[372116133,1752525052265,-460.0,0.0001863,2]
[372116134,1752525052276,-632.84,0.0001863,2]
[372116135,1752525052286,-720.21,0.0001863,2]
[372116136,1752525052400,-460.0,0.0001863,2]
[372116137,1752525052410,-421.66,0.0001863,2]
[372116138,1752525052420,-460.0,0.0001863,2]
[372116139,1752525052431,-460.0,0.0001863,2]
[372116140,1752525052441,-205.96,0.0001863,2]
[372116141,1752525052450,-460.0,0.0001863,2]
[372116142,1752525052460,-688.39,0.0001863,2]
[372116143,1752525052473,-587.0,0.00018699,2]
[372116144,1752525052485,-2154.0,0.00018734,2]
[372116145,1752525052496,-968.0,0.00018734,2]
[372116146,1752525052506,-407.0,0.00018734,2]
[372116147,1752525052518,-1583.76940355,0.00018762,2]
[372116148,1752525052528,-180.02880461,0.00018862,2]
[372116149,1752525052538,-303.07576439,0.000189,2]
[372116150,1752525052551,-694.28755598,0.000189,2]
[372116151,1752525052560,-210.405118,0.00018904,2]
[372116152,1752525052570,-210.405118,0.00018904,2]
[372116153,1752525052579,-460.0,0.00018904,2]
[372116154,1752525052589,-632.84,0.00018904,2]
[372116155,1752525052598,-720.21,0.00018904,2]
[372116156,1752525052608,-460.0,0.00018904,2]
[372116157,1752525052617,-460.0,0.00018904,2]
[372116158,1752525052627,-460.0,0.00018904,2]
[372116159,1752525052637,-204.64,0.00018904,2]
[372116160,1752525052647,-688.39,0.00018904,2]
[372116161,1752525052657,-178.22,0.00019034,2]
[372116162,1752525052666,-1583.76940355,0.00019072,2]
[372116163,1752525052678,-158.03587871,0.00019078,2]
[372116164,1752525052689,-560.0,0.00019084,2]
[372116165,1752525052699,-501.36560506,0.00019085,2]
[372116166,1752525052709,-303.07576439,0.00019089,2]
[372116167,1752525052720,-151.0,0.00019178,2]
[372116168,1752525052730,-210.405118,0.00019178,2]
[372116169,1752525052740,-210.405118,0.00019178,2]
[372116170,1752525052751,-210.405118,0.00019178,2]
[372116171,1752525052761,-210.405118,0.00019178,2]
[372116172,1752525052772,-278.778831,0.00019178,2]
[372116173,1752525052781,-151.0,0.00019178,2]
[372116174,1752525052791,-154.902806,0.00019178,2]
[372116175,1752525052802,-151.0,0.00019178,2]
[372116176,1752525052812,-460.0,0.00019178,2]
[372116177,1752525052822,-632.84,0.00019178,2]
[372116178,1752525052833,-720.21,0.00019178,2]
[372116179,1752525052843,-460.0,0.00019178,2]
[372116180,1752525052854,-460.0,0.00019178,2]
[372116181,1752525052863,-460.0,0.00019178,2]
[372116182,1752525052872,-688.39,0.00019178,2]
[372116183,1752525052882,-249.681117,0.00019178,2]
[372116184,1752525052891,-1579.14,0.000192,2]
[372116185,1752525052901,-3959.4,0.000192,2]
[372116186,1752525052910,-24979.11,0.000192,2]
[372116187,1752525052919,-303.07576439,0.00019278,2]
[372116188,1752525052929,-500.0,0.000193,2]
[372116189,1752525052938,-22203.72866822,0.00019329,2]
[372116190,1752525052947,-804.95425801,0.00019366,2]
[372116191,1752525052956,-1583.76940355,0.00019383,2]
[372116192,1752525052965,-151.0,0.00019404,2]
[372116193,1752525052974,-151.0,0.00019404,2]
[372116194,1752525052984,-151.0,0.00019404,2]
[372116195,1752525052993,-151.0,0.00019404,2]
[372116196,1752525053003,-151.0,0.00019404,2]
[372116197,1752525053013,-151.0,0.00019404,2]
[372116198,1752525053022,-210.405118,0.00019404,2]
[372116199,1752525053031,-210.405118,0.00019404,2]
[372116200,1752525053041,-210.405118,0.00019404,2]
[372116201,1752525053050,-210.405118,0.00019404,2]
[372116202,1752525053060,-210.405118,0.00019404,2]
[372116203,1752525053070,-210.405118,0.00019404,2]
[372116204,1752525053079,-210.405118,0.00019404,2]
[372116205,1752525053089,-210.405118,0.00019404,2]
[372116206,1752525053099,-210.405118,0.00019404,2]
[372116207,1752525053108,-210.405118,0.00019404,2]
[372116208,1752525053118,-151.0,0.00019404,2]
[372116209,1752525053127,-151.0,0.00019404,2]
[372116210,1752525053137,-151.0,0.00019404,2]
[372116211,1752525053146,-151.0,0.00019404,2]
[372116212,1752525053155,-238.128338,0.00019404,2]
[372116213,1752525053165,-210.405118,0.00019451,2]
[372116214,1752525053174,-210.405117,0.00019451,2]
[372116215,1752525053184,-460.0,0.00019452,2]
[372116216,1752525053193,-632.84,0.00019452,2]
[372116217,1752525053202,-720.21,0.00019452,2]
[372116218,1752525053211,-460.0,0.00019452,2]
[372116219,1752525053221,-460.0,0.00019452,2]
[372116220,1752525053230,-460.0,0.00019452,2]
[372116221,1752525053239,-688.39,0.00019452,2]
[372116222,1752525053250,-303.07576439,0.00019467,2]
[372116223,1752525053260,-214.33456592,0.000195,7]
[372116224,1752525053269,-12600.81778503,0.000195,7]
[372116225,1752525053279,-660.0,0.00019632,2]
[372116226,1752525053288,-334.0044761,0.00019634,2]
[372116227,1752525053297,-303.07576439,0.00019656,2]
[372116228,1752525053307,-1583.76940355,0.00019693,2]
[372116229,1752525053316,-460.0,0.00019726,2]
[372116230,1752525053325,-632.84,0.00019726,2]
[372116231,1752525053334,-720.21,0.00019726,2]
[372116232,1752525053343,-499.74,0.00019726,2]
[372116233,1752525053352,-460.0,0.00019726,2]
[372116234,1752525053362,-295.31,0.00019726,2]
[372116235,1752525053371,-688.39,0.00019726,2]
[372116236,1752525053381,-2200.0,0.00019727,2]
[372116237,1752525053390,-207.92,0.00019766,2]
[372116238,1752525053399,-241.60622253,0.00019845,4]
[372116239,1752525053408,-223.0315306,0.00019989,2]
[372116240,1752525053418,-214.33456592,0.0002,7]
[372116241,1752525053428,-2000.0,0.0002,2]
[372116242,1752525053438,-460.0,0.0002,2]
[372116243,1752525053447,-632.84,0.0002,2]
[372116244,1752525053456,-160.0,0.0002,7]
[372116245,1752525053466,-720.21,0.0002,2]
[372116246,1752525053480,-300.0,0.0002,2]
[372116247,1752525053489,-460.0,0.0002,2]
[372116248,1752525053499,-688.39,0.0002,2]
[372116249,1752525053508,-1583.76940355,0.00020003,2]
[372116250,1752525053518,-760.0,0.0002018,2]
[372116251,1752525053527,-368.224748,0.00020187,2]
[372116252,1752525053536,-460.0,0.00020273,2]
[372116253,1752525053545,-632.84,0.00020273,2]
[372116254,1752525053555,-720.21,0.00020273,2]
[372116255,1752525053565,-460.0,0.00020273,2]
[372116256,1752525053574,-688.39,0.00020273,2]
[372116257,1752525053583,-1583.76940355,0.00020314,3]
[372116258,1752525053594,-500.0,0.00020316,2]
[372116259,1752525053604,-160.0,0.000204,3]
[372116260,1752525053613,-12600.81778503,0.000204,3]
[372116261,1752525053622,-823.0,0.00020452,2]
[372116262,1752525053631,-237.62,0.00020498,2]
[372116263,1752525053641,-24979.11,0.000205,2]
[372116264,1752525053650,-460.0,0.00020547,2]
[372116265,1752525053659,-632.84,0.00020547,2]
[372116266,1752525053668,-720.21,0.00020547,2]
[372116267,1752525053679,-460.0,0.00020547,2]
[372116268,1752525053690,-688.39,0.00020547,2]
[372116269,1752525053699,-1583.76940355,0.00020624,3]
[372116270,1752525053709,-501.564,0.00020648,2]
[372116271,1752525053719,-241.0,0.0002067,2]
[372116272,1752525053729,-3959.4,0.000207,2]
[372116273,1752525053739,-860.0,0.00020728,2]
[372116274,1752525053749,-214.33456592,0.000208,3]
[372116275,1752525053759,-460.0,0.00020821,2]
[372116276,1752525053769,-632.84,0.00020821,2]
[372116277,1752525053779,-720.21,0.00020821,2]
[372116278,1752525053788,-460.0,0.00020821,2]
[372116279,1752525053797,-688.39,0.00020821,2]
[372116280,1752525053807,-1583.76940355,0.00020934,4]
[372116281,1752525053817,-2000.0,0.00021,2]
[372116282,1752525053827,-334.0044761,0.00021002,2]
[372116283,1752525053837,-500.0,0.00021064,2]
[372116284,1752525053847,-804.95425801,0.00021084,2]
[372116285,1752525053857,-460.0,0.00021095,2]
[372116286,1752525053867,-632.84,0.00021095,2]
[372116287,1752525053877,-720.21,0.00021095,2]
[372116288,1752525053887,-460.0,0.00021095,2]
[372116289,1752525053896,-688.39,0.00021095,2]
[372116290,1752525053905,-713.02461964,0.00021104,5]
[372116291,1752525053916,-267.33,0.0002123,2]
[372116292,1752525053925,-1583.76940355,0.00021245,4]
[372116293,1752525053935,-960.0,0.00021276,2]
[372116294,1752525053946,-500.0,0.00021332,2]
[372116295,1752525053956,-231.28369723,0.00021358,2]
[372116296,1752525053967,-460.0,0.00021369,2]
[372116297,1752525053976,-632.84,0.00021369,2]
[372116298,1752525053986,-720.21,0.00021369,2]
[372116299,1752525053996,-524.74,0.00021369,2]
[372116300,1752525054005,-688.39,0.00021369,2]
[372116301,1752525054014,-1579.14,0.000214,2]
[372116302,1752525054023,-1583.76940355,0.00021555,5]
[372116303,1752525054033,-4000.0,0.00021636,4]
[372116304,1752525054044,-460.0,0.00021643,2]
[372116305,1752525054053,-12500.0,0.00021643,7]
[372116306,1752525054062,-632.84,0.00021643,2]
[372116307,1752525054071,-720.21,0.00021643,2]
[372116308,1752525054081,-688.39,0.00021643,2]
[372116309,1752525054090,-2154.0,0.00021734,2]
[372116310,1752525054100,-968.0,0.00021734,2]
[372116311,1752525054110,-407.0,0.00021734,2]
[372116312,1752525054120,-24979.11,0.000218,2]
[372116313,1752525054131,-1060.0,0.00021824,2]
[372116314,1752525054142,-1583.76940355,0.00021866,6]
[372116315,1752525054152,-460.0,0.00021917,2]
[372116316,1752525054163,-632.84,0.00021917,2]
[372116317,1752525054174,-720.21,0.00021917,2]
[372116318,1752525054185,-688.39,0.00021917,2]
[372116319,1752525054196,-297.03,0.00021962,2]
[372116320,1752525054206,-1012.099999,0.00022,2]
[372116321,1752525054215,-42939.58,0.00022,7]
[372116322,1752525054225,-1583.76940355,0.00022176,6]
[372116323,1752525054237,-191.80707664,0.00022191,2]
[372116324,1752525054247,-632.84,0.00022191,2]
[372116325,1752525054257,-720.21,0.00022191,2]
[372116326,1752525054266,-688.39,0.00022191,2]
[372116327,1752525054276,-3959.4,0.000222,7]
[372116328,1752525054287,-160.0,0.00022331,3]
[372116329,1752525054296,-1152.0,0.00022369,2]
[372116330,1752525054306,-334.0044761,0.00022369,2]
[372116331,1752525054315,-1160.0,0.00022372,2]
[372116332,1752525054324,-638.64980658,0.00022398,2]
[372116333,1752525054333,-771.05290904,0.000224,2]
[372116334,1752525054343,-173.333,0.00022433,2]
[372116335,1752525054354,-632.84,0.00022465,2]
[372116336,1752525054363,-720.21,0.00022465,2]
[372116337,1752525054374,-688.39,0.00022465,2]
[372116338,1752525054384,-1583.76940355,0.00022486,7]
[372116339,1752525054394,-203736.57760132,0.0002249,7]
[372116340,1752525054403,-2172.01,0.000225,2]
[372116341,1752525054413,-541.19,0.00022598,3]
[372116342,1752525054423,-249.681117,0.00022603,2]
[372116343,1752525054433,-541.19,0.00022698,2]
[372116344,1752525054444,-771.05290898,0.000227,2]
[372116345,1752525054454,-239.84119403,0.00022727,2]
[372116346,1752525054463,-632.87,0.00022739,2]
[372116347,1752525054476,-720.38766143,0.00022739,2]
[372116348,1752525054487,-688.60869312,0.00022739,2]
[372116349,1752525054496,-1583.76940355,0.00022797,7]
[372116350,1752525054506,-541.19,0.00022798,3]
[372116351,1752525054519,-804.95425801,0.00022802,2]
[372116352,1752525054529,-300.0,0.00022803,2]
[372116353,1752525054539,-541.19,0.00022898,2]
[372116354,1752525054551,-1379.224969,0.000229,5]
[372116355,1752525054562,-151.0,0.00022902,7]
[372116356,1752525054573,-151.0,0.00022902,7]
[372116357,1752525054583,-151.0,0.00022902,7]
[372116358,1752525054592,-214.467524,0.00022902,7]
[372116359,1752525054602,-151.0,0.00022902,7]
[372116360,1752525054611,-151.0,0.00022902,7]
[372116361,1752525054620,-151.0,0.00022902,7]
[372116362,1752525054629,-151.0,0.00022902,7]
[372116363,1752525054639,-151.0,0.00022902,7]
[372116364,1752525054648,-151.0,0.00022902,7]
[372116365,1752525054657,-151.0,0.00022902,7]
[372116366,1752525054667,-151.0,0.00022902,7]
[372116367,1752525054676,-151.0,0.00022902,7]
[372116368,1752525054685,-151.0,0.00022902,7]
[372116369,1752525054695,-151.0,0.00022902,7]
[372116370,1752525054704,-151.239956,0.00022902,7]
[372116371,1752525054714,-151.0,0.00022902,7]
[372116372,1752525054723,-279.633042,0.00022902,7]
[372116373,1752525054731,-151.0,0.00022902,7]
[372116374,1752525054740,-293.768062,0.00022902,7]
[372116375,1752525054750,-151.0,0.00022902,7]
[372116376,1752525054759,-150000.0,0.00022903,2]
[372116377,1752525054768,-55117.93501679,0.00022903,2]
[372116378,1752525054907,-293.999998,0.00022903,2]
[372116379,1752525054919,-1164.56869312,0.00022903,2]
[372116380,1752525054933,-4516.87996952,0.00022903,2]
[372116381,1752525055049,-13197.88736837,0.00022903,2]
[372116382,1752525055061,-2765.18610255,0.00022903,2]
[372116383,1752525055074,-3157.4254304,0.00022903,2]
[372116384,1752525055085,-33552.43302274,0.00022903,2]
[372116385,1752525055115,-460.0,0.00016438,2]
[372116386,1752525055125,-3.49354728,0.00016712,2]
[372116387,1752525055136,-456.50645272,0.00016712,2]
[372116388,1752525055144,-36233.68439851,0.00022903,2]
[372116389,1752525055153,-142558.4679875,0.00022903,2]
[372116390,1752525055162,-5920.6550084,0.00022903,2]
[372116391,1752525055171,-1520.8770041,0.00022903,2]
[372116392,1752525055180,-3479.1229959,0.00022903,2]
[372116393,1752525055243,-504.25575989,0.00016438,2]
[372116394,1752525055251,-19085.17768107,0.00022903,2]
[372116395,1752525055296,-514.01076872,0.00022903,2]
[372116396,1752525055307,-69622.33786563,0.00022903,2]
[372116397,1752525055316,-20798.65750117,0.00022903,2]
[372116398,1752525071184,183.172903,0.00027397,120]
[372116405,1752525372863,150.0,0.00015223,2]
[372116406,1752525412531,500.0,0.00022986,30]
[372116408,1752525446408,150.0,0.00014942,2]
[372116409,1752525520284,150.0,0.00014974,2]
[372116410,1752525592773,150.0,0.0001511,2]
[372116411,1752525633541,12318.62627197,0.00015446,2]
[372116412,1752525633565,12581.37372803,0.00015446,2]
[372116413,1752525655556,152.0,0.00027397,120]
[372116414,1752525665491,150.0,0.00015022,2]
[372116415,1752525745749,150.0,0.00014915,2]
[372116416,1752525817639,150.0,0.00014921,2]
[372116418,1752525955840,150.0,0.00015097,2]
[372116421,1752526110471,349.813511,0.00013699,2]
[372116423,1752526167591,150.0,0.00015353,2]
[372116469,1752526232046,-150.0,0.00016084,2]
[372116471,1752526232056,-374.88491271,0.00016337,2]
[372116474,1752526232066,-13.21508729,0.00016338,2]
[372116476,1752526232077,-630.74831915,0.00016338,2]
[372116478,1752526232087,-398.0,0.00016428,3]
[372116480,1752526232096,-300.0,0.00016436,2]
[372116482,1752526232105,-901.41922979,0.00016437,2]
[372116484,1752526232117,-23999.38215697,0.00016437,2]
[372116570,1752526237895,-4800.0,0.00016437,2]
[372116571,1752526237909,-267.09860424,0.00016437,2]
[372116572,1752526237951,-20032.100009,0.00016437,2]
[372116573,1752526237962,-500.0,0.00016437,2]
[372116574,1752526237971,-500.0,0.00016437,2]
[372116575,1752526237980,-500.0,0.00016437,2]
[372116576,1752526237989,-500.0,0.00016437,2]
[372116577,1752526237999,-420.51692505,0.00016437,2]
[372116578,1752526238008,-500.0,0.00016437,2]
[372116579,1752526238017,-500.0,0.00016437,2]
[372116580,1752526238027,-500.0,0.00016437,2]
[372116581,1752526238036,-500.0,0.00016437,2]
[372116582,1752526238045,-184.6436418,0.00016437,2]
[372116583,1752526238054,-500.0,0.00016437,2]
[372116584,1752526238063,-500.0,0.00016437,2]
[372116585,1752526238072,-500.0,0.00016437,2]
[372116586,1752526238082,-500.0,0.00016437,2]
[372116587,1752526238091,-500.0,0.00016437,2]
[372116588,1752526238100,-500.0,0.00016437,2]
[372116589,1752526238109,-500.0,0.00016437,2]
[372116590,1752526238118,-500.0,0.00016437,2]
[372116591,1752526238127,-500.0,0.00016437,2]
[372116592,1752526238137,-423.31229466,0.00016437,2]
[372116593,1752526238146,-500.0,0.00016437,2]
[372116594,1752526238156,-500.0,0.00016437,2]
[372116595,1752526238165,-500.0,0.00016437,2]
[372116596,1752526238174,-500.0,0.00016437,2]
[372116597,1752526238183,-500.0,0.00016437,2]
[372116598,1752526238192,-500.0,0.00016437,2]
[372116599,1752526238202,-500.0,0.00016437,2]
[372116600,1752526238211,-500.0,0.00016437,2]
[372116601,1752526238220,-500.0,0.00016437,2]
[372116602,1752526238229,-500.0,0.00016437,2]
[372116603,1752526238238,-500.0,0.00016437,2]
[372116604,1752526238248,-500.0,0.00016437,2]
[372116605,1752526238257,-500.0,0.00016437,2]
[372116606,1752526238266,-564.95718979,0.00016437,2]
[372116607,1752526238275,-500.0,0.00016437,2]
[372116608,1752526238284,-500.0,0.00016437,2]
[372116609,1752526238293,-500.0,0.00016437,2]
[372116610,1752526238302,-500.0,0.00016437,2]
[372116611,1752526238312,-500.0,0.00016437,2]
[372116612,1752526238321,-500.0,0.00016437,2]
[372116613,1752526238330,-500.0,0.00016437,2]
[372116614,1752526238339,-500.0,0.00016437,2]
[372116615,1752526238348,-500.0,0.00016437,2]
[372116616,1752526238358,-500.0,0.00016437,2]
[372116617,1752526238368,-500.0,0.00016437,2]
[372116618,1752526238377,-500.0,0.00016437,2]
[372116619,1752526238387,-500.0,0.00016437,2]
[372116620,1752526238396,-500.0,0.00016437,2]
[372116621,1752526238407,-500.0,0.00016437,2]
[372116622,1752526238416,-500.0,0.00016437,2]
[372116623,1752526238425,-500.0,0.00016437,2]
[372116624,1752526238434,-500.0,0.00016437,2]
[372116625,1752526238443,-500.0,0.00016437,2]
[372116626,1752526238452,-403.44720709,0.00016437,2]
[372116627,1752526238462,-500.0,0.00016437,2]
[372116628,1752526238472,-500.0,0.00016437,2]
[372116629,1752526238482,-645.61964872,0.00016437,2]
[372116630,1752526238491,-500.0,0.00016437,2]
[372116631,1752526238501,-328.67190396,0.00016437,2]
[372116632,1752526238510,-500.0,0.00016437,2]
[372116633,1752526238520,-500.0,0.00016437,2]
[372116634,1752526238530,-500.0,0.00016437,2]
[372116635,1752526238547,-500.0,0.00016437,2]
[372116636,1752526238559,-418.60864079,0.00016437,2]
[372116637,1752526238568,-460.0,0.00016438,2]
[372116638,1752526238578,-460.0,0.00016438,2]
[372116639,1752526238589,-460.0,0.00016438,2]
[372116640,1752526238598,-461.4511122,0.00016438,2]
[372116641,1752526238607,-460.0,0.00016438,2]
[372116642,1752526238617,-460.0,0.00016438,2]
[372116644,1752526238627,-460.0,0.00016438,2]
[372116646,1752526238636,-460.0,0.00016438,2]
[372116647,1752526238645,-460.0,0.00016438,2]
[372116648,1752526238655,-460.0,0.00016438,2]
[372116649,1752526238668,-460.0,0.00016438,2]
[372116650,1752526238683,-460.0,0.00016438,2]
[372116651,1752526238693,-460.0,0.00016438,2]
[372116652,1752526238702,-460.0,0.00016438,2]
[372116653,1752526238711,-356.92758961,0.00016438,2]
[372116654,1752526238721,-460.0,0.00016438,2]
[372116655,1752526238730,-460.0,0.00016438,2]
[372116656,1752526238739,-460.0,0.00016438,2]
[372116657,1752526238749,-460.0,0.00016438,2]
[372116658,1752526238766,-460.0,0.00016438,2]
[372116659,1752526238775,-460.0,0.00016438,2]
[372116660,1752526238786,-460.0,0.00016438,2]
[372116661,1752526238801,-460.0,0.00016438,2]
[372116662,1752526238810,-460.0,0.00016438,2]
[372116663,1752526238821,-460.0,0.00016438,2]
[372116664,1752526238831,-460.0,0.00016438,2]
[372116665,1752526238842,-460.0,0.00016438,2]
[372116666,1752526238852,-460.0,0.00016438,2]
[372116667,1752526238862,-460.0,0.00016438,2]
[372116668,1752526238874,-460.0,0.00016438,2]
[372116669,1752526238886,-460.0,0.00016438,2]
[372116670,1752526238896,-460.0,0.00016438,2]
[372116671,1752526238910,-500.0,0.00016438,2]
[372116672,1752526238920,-500.0,0.00016438,2]
[372116673,1752526238931,-505.79646624,0.00016438,2]
[372116674,1752526238942,-460.0,0.00016438,2]
[372116675,1752526238951,-460.0,0.00016438,2]
[372116676,1752526238962,-460.0,0.00016438,2]
[372116677,1752526238972,-460.0,0.00016438,2]
[372116678,1752526238981,-460.0,0.00016438,2]
[372116679,1752526238991,-460.0,0.00016438,2]
[372116680,1752526239001,-460.0,0.00016438,2]
[372116681,1752526239011,-460.0,0.00016438,2]
[372116682,1752526239021,-460.0,0.00016438,2]
[372116683,1752526239030,-460.0,0.00016438,2]
[372116684,1752526239039,-460.0,0.00016438,2]
[372116685,1752526239048,-460.0,0.00016438,2]
[372116686,1752526239058,-460.0,0.00016438,2]
[372116687,1752526239067,-460.0,0.00016438,2]
[372116688,1752526239077,-583.0915925,0.00016438,2]
[372116689,1752526239086,-460.0,0.00016438,2]
[372116690,1752526239095,-460.0,0.00016438,2]
[372116691,1752526239106,-460.0,0.00016438,2]
[372116692,1752526239115,-460.0,0.00016438,2]
[372116693,1752526239125,-460.0,0.00016438,2]
[372116694,1752526239135,-460.0,0.00016438,2]
[372116695,1752526239144,-460.0,0.00016438,2]
[372116696,1752526239154,-460.0,0.00016438,2]
[372116697,1752526239165,-460.0,0.00016438,2]
[372116698,1752526239175,-460.0,0.00016438,2]
[372116699,1752526239185,-460.0,0.00016438,2]
[372116700,1752526239194,-460.0,0.00016438,2]
[372116701,1752526239205,-605.04011904,0.00016438,2]
[372116702,1752526239216,-460.0,0.00016438,2]
[372116703,1752526239226,-460.0,0.00016438,2]
[372116704,1752526239235,-460.0,0.00016438,2]
[372116705,1752526239245,-460.0,0.00016438,2]
[372116706,1752526239255,-460.0,0.00016438,2]
[372116707,1752526239265,-460.0,0.00016438,2]
[372116708,1752526239274,-460.0,0.00016438,2]
[372116709,1752526239284,-460.0,0.00016438,2]
[372116710,1752526239293,-460.5364336,0.00016438,2]
[372116711,1752526239303,-460.0,0.00016438,2]
[372116712,1752526239313,-460.0,0.00016438,2]
[372116713,1752526239323,-460.0,0.00016438,2]
[372116714,1752526239333,-460.0,0.00016438,2]
[372116715,1752526239343,-460.0,0.00016438,2]
[372116716,1752526239353,-460.0,0.00016438,2]
[372116717,1752526239362,-460.0,0.00016438,2]
[372116718,1752526239372,-460.0,0.00016438,2]
[372116720,1752526239381,-366.27236655,0.00016438,2]